Cogmind - Beta 17 @@@ ROGUE MODE // 2026.08.11 @ 19:40:35 Player: MrFartsburg Result: Destroyed by C-40 Crusher with Compactor Performance ------------- Evolutions (5) 2500 Regions Visited (13) 2600 Robots Destroyed (36) 180 Value Destroyed (1264) 1264 Prototype IDs (4) 80 Alien Tech Used (0) 0 Bonus (927) 927 TOTAL SCORE: 7551 Bonus ------- Follower Combat Kills 427 Entered DSFs 500 Cogmind --------- Core Integrity 0/1000 Matter 210/300 Energy 100/100 System Corruption 0% Temperature Cool (0) Movement Core (2350) Ox46 Location -5/Waste Parts ------- > --- POWER (3) -------- (None) > --- PROPULSION (3) --- (None) > --- UTILITY (8) ------ Cargo Storage Unit > --- WEAPON (3) ------- (None) > --- INVENTORY (30) --- Advanced Heat Sink Improved Remote Shield Advanced Hacking Suite High-powered Shotgun Katana Peak State ------------ > --- POWER ------------ Micro Nuclear Core Angular Momentum Engine > --- PROPULSION ------- Flexi-carbon Leg Armored Leg > --- UTILITY ---------- Advanced Heat Sink Large Storage Unit Improved Terrain Scan Processor Improved Transmission Jammer Layered Medium Armor Plating Layered Medium Armor Plating > --- WEAPON ----------- Lightning Gun Lightning Gun Minigun > --- INVENTORY -------- Carbon-fiber Leg Carbon-fiber Leg Makeshift Leg Makeshift Leg Improved Heat Sink Advanced Heat Sink Improved Melee Analysis Suite Improved Weapon Shielding Improved Medium Armor Plating Shock Absorption System Drone Bay Lightning Gun Gauss Rifle Katana [Rating: 60] Favorites ----------- Power Ion Engine Engine Ion Engine Power Core Light Nuclear Core Propulsion Aluminum Leg Leg Aluminum Leg Wheel Compact Wheel Utility Large Storage Unit Device Terrain Scanner Storage Large Storage Unit Processor Improved Terrain Scan Processor Protection Layered Medium Armor Plating Weapon Assault Rifle Energy Gun Beam Rifle Energy Cannon Advanced Beam Cannon Ballistic Gun Assault Rifle Ballistic Cannon Advanced Assault Cannon Special Weapon Plasma Cutter Slashing Weapon Ionic Axe Build | -11 -10 -10 -10 -9 -8 -8 -7 -7 -7 -6 -6 -5 -5 ------- Run | Yrd Mat Min Exi Min Mat Sto Fac Low Low Fac DSF Fac Was Slots Evolved 10 | . . . . . 4 . 2 . . 2 . 2 . Power 2 | . . . . . 1 . . . . 1 . . . Propulsion 1 | . . . . . 1 . . . . . . . . Utility 6 | . . . . . 1 . 2 . . 1 . 2 . Weapon 1 | . . . . . 1 . . . . . . . . Parts Attached 81 | 6 3 3 . . 4 14 6 11 3 1 21 9 . Power 10 | 1 . . . . 1 3 1 2 1 . 1 . . Engine 6 | 1 . . . . . 3 . 1 . . 1 . . Core 4 | . . . . . 1 . 1 1 1 . . . . Reactor . | . . . . . . . . . . . . . . Propulsion 19 | 2 . 2 . . . 7 . 3 . . 5 . . Treads . | . . . . . . . . . . . . . . Leg 17 | . . 2 . . . 7 . 3 . . 5 . . Wheel 2 | 2 . . . . . . . . . . . . . Hover . | . . . . . . . . . . . . . . Flight . | . . . . . . . . . . . . . . Utility 27 | 1 2 . . . 1 1 5 1 1 1 8 6 . Device 16 | . 1 . . . 1 1 3 . 1 1 3 5 . Storage 3 | 1 1 . . . . . . . . . . 1 . Processor 3 | . . . . . . . 2 . . . 1 . . Hackware . | . . . . . . . . . . . . . . Protection 5 | . . . . . . . . 1 . . 4 . . Artifact . | . . . . . . . . . . . . . . Weapon 25 | 2 1 1 . . 2 3 . 5 1 . 7 3 . Energy Gun 7 | 1 . . . . . 1 . 1 . . 4 . . Energy Cannon 2 | . . . . . 1 . . . 1 . . . . Ballistic Gun 10 | 1 . 1 . . 1 2 . 2 . . 2 1 . Ballistic Cannon 2 | . . . . . . . . 1 . . . 1 . Launcher . | . . . . . . . . . . . . . . Special Weapon 2 | . 1 . . . . . . 1 . . . . . Impact Weapon . | . . . . . . . . . . . . . . Slashing Weapon 2 | . . . . . . . . . . . 1 1 . Piercing Weapon . | . . . . . . . . . . . . . . Special Melee Weapon . | . . . . . . . . . . . . . . Unidentified Prototypes 2 | . . . . . 1 . . . . . . 1 . Corrupted Parts 1 | . . . . . . . . . . . 1 . . System Corruption 3 | . . . . . . . . . . . 3 . . Parts Lost 44 | . 1 2 . . 2 5 . 4 3 . 22 . 5 Power 5 | . . . . . . 1 . . 1 . 3 . . Propulsion 7 | . . 1 . . 1 1 . . . . 3 . 1 Utility 14 | . . . . . . . . . 1 . 10 . 3 Weapon 18 | . 1 1 . . 1 3 . 4 1 . 6 . 1 Highest Loss Streak 7 | . 1 1 . . 2 3 . 3 2 . 7 . 5 To Critical Strikes 2 | . . . . . . . . 1 . . . . 1 Average Backups 6 | . 2 3 3 4 3 5 10 13 9 8 9 3 5 Power . | . 1 1 2 2 1 1 . . . . . . . Propulsion . | . . . . . . . 2 1 1 1 2 . . Utility 4 | . . . 1 2 1 4 5 9 8 7 5 1 3 Weapon . | . 1 . . . . . 2 . . . 1 1 2 Tool/Special . | . . . . . . . . . . . . . . Unused Backups 7 | . . . . . . 2 . 1 . . 3 . 1 Power . | . . . . . . . . . . . . . . Propulsion . | . . . . . . . . . . . . . . Utility 5 | . . . . . . 2 . 1 . . 1 . 1 Weapon 2 | . . . . . . . . . . . 2 . . Tool/Special . | . . . . . . . . . . . . . . Average Slot Usage (%) 88 | . 90 93 100 100 86 90 99 98 96 86 77 69 42 Engine 9 | . 14 14 14 14 9 13 10 7 4 . 3 . . Core 3 | . . . . . 9 4 3 7 9 13 5 . . Leg 18 | . . 7 28 28 17 18 23 23 23 20 15 11 5 Wheel 1 | . 28 18 . . . . . . . . . . . Device 17 | . 5 14 14 14 17 17 22 21 14 20 13 24 12 Storage 8 | . 14 14 14 14 9 9 7 7 7 6 4 3 5 Processor 3 | . . . . . . . 7 7 7 6 7 11 6 Protection 1 | . . . . . . . . 1 7 6 10 . . Energy Gun 2 | . 12 . . . . 2 7 6 . . 8 . . Energy Cannon 2 | . . . . . 6 6 . . 5 6 1 . . Ballistic Gun 13 | . 14 20 28 28 17 17 15 7 6 . 3 5 2 Ballistic Cannon 1 | . . . . . . . . 5 . . . 4 3 Peak Build Rating 60 | 6 7 7 8 8 21 27 40 46 43 45 60 59 55 Average Rating 28 | 4 6 6 7 8 19 21 37 42 41 45 51 52 31 On Entrance 23 | . 6 7 7 8 8 20 27 40 41 41 45 27 55 Avg Prop Armor Cover (%) . | . . . . . . . . . . . . . . Naked Turns . | . . . . . . . . . . . . . . Heaviest Build 172 | 14 30 30 30 30 45 49 48 53 52 51 68 172 172 Greatest Support 64 | 26 26 26 20 20 20 58 54 64 55 55 56 35 35 Greatest Overweight (x) 46 | . 1 1 1 1 4 4 . 1 . . 1 4 46 Average Overweight (x) . | . . 1 1 1 1 1 . . . . . 2 10 Largest Inventory Capacity 30 | 8 15 15 15 15 15 15 15 15 15 15 15 30 30 Average Capacity 15 | 6 14 15 15 15 15 15 15 15 15 15 11 21 30 Most Carried 15 | 2 2 6 4 4 5 10 14 15 10 8 14 5 5 Average Carried 6 | . 2 3 3 4 3 5 10 13 9 8 9 3 5 Final Capacity 30 | 8 15 15 15 15 15 15 15 15 15 15 5 30 30 Final Carried 14 | 2 2 3 4 4 4 10 14 10 9 8 4 5 5 Class Distribution -------------------- 33% | Mutant 19% | Skirmisher 16% | Gunner 10% | Hauler-Mutant 9% | Commander-Skirmisher 3% | Derelict-Mutant Dominant Class ---------------- Mutant | -10/Materials Mutant | -10/Mines Mutant | -10/Exiles Mutant | -9/Mines Skirmisher | -8/Materials Skirmisher | -8/Storage Gunner | -7/Factory Gunner | -7/Lower Caves Derelict-Gunner | -7/Lower Caves Derelict-Gunner | -6/Factory Mutant | -6/DSF Hauler-Mutant | -5/Factory Hauler-Mutant | -5/Waste Resources | -11 -10 -10 -10 -9 -8 -8 -7 -7 -7 -6 -6 -5 -5 ----------- Run | Yrd Mat Min Exi Min Mat Sto Fac Low Low Fac DSF Fac Was Matter Collected 1304 | 248 2 74 . . 57 241 . 435 29 . 218 . . Remotely . | . . . . . . . . . . . . . . Salvage Created 1280 | . 27 95 . . 111 350 . 222 27 . 448 . . Parts 90 | . 7 5 . . 10 28 . 13 1 . 26 . . Haulers Intercepted 1 | . . . . . . 1 . . . . . . . Recyclers Shooed 1 | . . . . . 1 . . . . . . . . Parts Field Recycled . | . . . . . . . . . . . . . . Retrieved Matter . | . . . . . . . . . . . . . . Parts Self-Destructed 14 | . . . . . . . . 14 . . . . . Prevented . | . . . . . . . . . . . . . . Parts Restored . | . . . . . . . . . . . . . . Kills | -11 -10 -10 -10 -9 -8 -8 -7 -7 -7 -6 -6 -5 -5 ------- Run | Yrd Mat Min Exi Min Mat Sto Fac Low Low Fac DSF Fac Was Combat Hostiles Destroyed 33 | . 3 4 . . 2 7 . 9 1 . 7 . . Melee 1 | . . . . . . . . . . . 1 . . Guns 19 | . 1 4 . . 2 7 . 1 . . 4 . . Cannons 9 | . . . . . . . . 8 1 . . . . AOE 2 | . 2 . . . . . . . . . . . . Classes Destroyed 8 | . 1 1 . . 1 3 . 1 . . 1 . . Builder 1 | . . . . . . 1 . . . . . . . Hauler 1 | . . . . . . 1 . . . . . . . Watcher 1 | . . . . . . 1 . . . . . . . Swarmer 15 | . 3 3 . . . 2 . 5 1 . 1 . . Grunt 5 | . . 1 . . . 1 . 3 . . . . . Sentry 6 | . . . . . 2 4 . . . . . . . Specialist 5 | . . . . . . . . . . . 5 . . Programmer 2 | . . . . . . . . 1 . . 1 . . Best Kill Streak 5 | . 3 3 . . 2 5 . 3 1 . 2 . . Combat Bots Only 5 | . 3 3 . . 2 5 . 3 1 . 2 . . Max Kills in Single Turn 2 | . 2 1 . . 1 2 . 1 1 . 1 . . Gunslinging . | . . . . . . . . . . . . . . Exploded 2 | . 2 . . . . . . . . . . . . Melee 1 | . . . . . . . . . . . 1 . . Uniques/NPCs Destroyed . | . . . . . . . . . . . . . . Combat | -11 -10 -10 -10 -9 -8 -8 -7 -7 -7 -6 -6 -5 -5 -------- Run | Yrd Mat Min Exi Min Mat Sto Fac Low Low Fac DSF Fac Was Hostile Shots Fired 633 | . 15 23 . . 41 122 . 115 29 . 257 . 31 Missed 207 | . 6 2 . . 12 39 . 44 7 . 97 . . Hits 426 | . 9 21 . . 29 83 . 71 22 . 160 . 31 Melee 31 | . . . . . . . . . . . . . 31 Projectile 395 | . 9 21 . . 29 83 . 71 22 . 160 . . Critical Strikes 30 | . . . . . 3 2 . 4 . . 4 . 17 Actively Blocked 1 | . . . . . . . . . . . 1 . . Damage Taken 7804 | . 99 220 . . 411 1011 . 1100 333 . 3183 . 1447 Core 1963 | . 20 43 . . 42 168 . 244 75 . 345 . 1026 Absorbed by Shields 146 | . . . . . . . . . . . 146 . . Redirected to Shielding 105 | . . . . . . . . . . . 105 . . Regen/Repaired (Parts) 32 | . . . . . . 32 . . . . . . . Core Remaining (%) 69 | 100 . . . 74 . 61 . . 54 . 59 . . Volleys Fired 87 | . 2 11 . . 6 19 . 24 3 . 22 . . Largest 3 | . 2 2 . . 3 3 . 3 3 . 3 . . Hottest 165 | . 60 120 . . 108 116 . 121 113 . 165 . . Shots Fired 223 | . 4 18 . . 16 46 . 68 9 . 62 . . Gun 179 | . 4 17 . . 10 41 . 42 3 . 62 . . Cannon 38 | . . . . . 6 5 . 24 3 . . . . Launcher . | . . . . . . . . . . . . . . Special 6 | . . 1 . . . . . 2 3 . . . . Kinetic 124 | . 2 17 . . 10 32 . 45 3 . 15 . . Thermal 50 | . . 1 . . 6 14 . 23 6 . . . . Explosive . | . . . . . . . . . . . . . . Electromagnetic 49 | . 2 . . . . . . . . . 47 . . Robot Hit Streak 12 | . 3 6 . . 11 12 . 5 1 . 9 . . Robot Miss Streak 7 | . . 3 . . 2 7 . 5 3 . 4 . . Penetration Max . | . . . . . . . . . . . . . . Secondary Targets 2 | . . . . . . . . . . . 2 . . Max Gunslinging Chain 1 | . . . . . . . . . . . 1 . . Shots Hit Robots 135 | . 3 9 . . 13 28 . 31 3 . 46 . 2 Core Hits 59 | . 3 7 . . 5 16 . 13 2 . 13 . . Critical Kills . | . . . . . . . . . . . . . . Critical Parts Destroyed . | . . . . . . . . . . . . . . Critical Strikes 2 | . . . . . . 1 . 1 . . . . . Burn 1 | . . . . . . 1 . . . . . . . Blast 1 | . . . . . . . . 1 . . . . . Melee Attacks 5 | . . . . . . . . . . . 3 . 2 Impact . | . . . . . . . . . . . . . . Slashing 5 | . . . . . . . . . . . 3 . 2 Piercing . | . . . . . . . . . . . . . . Sneak Attacks 1 | . . . . . . . . . . . . . 1 Combat Hostiles . | . . . . . . . . . . . . . . Follow-up Attacks . | . . . . . . . . . . . . . . Damage Inflicted 2780 | . 113 131 . . 202 556 5 794 45 . 808 . 126 Guns 1708 | . 21 100 . . 94 443 . 283 33 . 734 . . Cannons 638 | . . . . . 100 40 . 498 . . . . . Explosions 81 | . 81 . . . . . . . . . . . . Melee 200 | . . . . . . . . . . . 74 . 126 Ramming 106 | . 11 7 . . 8 73 5 2 . . . . . Kinetic 1507 | . . 100 . . 94 372 . 676 33 . 232 . . Thermal 444 | . 81 24 . . 100 111 . 116 12 . . . . Explosive . | . . . . . . . . . . . . . . Electromagnetic 523 | . 21 . . . . . . . . . 502 . . Impact . | . . . . . . . . . . . . . . Slashing 200 | . . . . . . . . . . . 74 . 126 Piercing . | . . . . . . . . . . . . . . Highest Corruption 3 | . . . . . . . . 2 2 . 3 . . Average Corruption 2 | . . . . . . . . 1 2 . 3 . . Corruption Purged . | . . . . . . . . . . . . . . Corruption Blocked . | . . . . . . . . . . . . . . Effects 11 | . . . . . . . . 8 2 . 1 . . Message Errors 4 | . . . . . . . . 2 1 . 1 . . Matter Fused 1 | . . . . . . . . . 1 . . . . Heat Flow Errors 1 | . . . . . . . . 1 . . . . . Energy Discharges 2 | . . . . . . . . 2 . . . . . Data Loss (minor) 2 | . . . . . . . . 2 . . . . . Weapon Failures 1 | . . . . . . . . 1 . . . . . Overload Shots . | . . . . . . . . . . . . . . Overflow Damage 18 | . . . . . 1 . . 5 . . . . 12 Projectiles 6 | . . . . . 1 . . 5 . . . . . Explosions . | . . . . . . . . . . . . . . Melee 12 | . . . . . . . . . . . . . 12 Knockbacks 7 | . . . . . . 1 . 6 . . . . . Impact 1 | . . . . . . 1 . . . . . . . Kinetic 5 | . . . . . . . . 5 . . . . . Secondary 1 | . . . . . . . . 1 . . . . . Self-Inflicted Damage 8 | . 5 3 . . . . . . . . . . . Shots . | . . . . . . . . . . . . . . Rammed 2 | . 1 1 . . . . . . . . . . . Targets Rammed 20 | . 1 1 . . 2 14 1 1 . . . . . Kicked 18 | . . . . . 2 14 1 1 . . . . . Crushed . | . . . . . . . . . . . . . . Highest Temperature 554 | . . 50 . . 212 217 . 554 114 . 108 . . Average Temperature 131 | . . 28 . . 85 76 . 185 70 . 31 . . Received Heat Transfer 1086 | . . 81 . . 198 306 . 258 . . 243 . . Effects 18 | . . . . . . . . 18 . . . . . Shutdowns 8 | . . . . . . . . 8 . . . . . Energy Bleed 1 | . . . . . . . . 1 . . . . . Interference 1 | . . . . . . . . 1 . . . . . Matter Decay 1 | . . . . . . . . 1 . . . . . Short Circuit 3 | . . . . . . . . 3 . . . . . Damage (major) 3 | . . . . . . . . 3 . . . . . Damage (core) 1 | . . . . . . . . 1 . . . . . Siege Activations . | . . . . . . . . . . . . . . Martial Activations . | . . . . . . . . . . . . . . Shielding Activations . | . . . . . . . . . . . . . . Robots Disrupted 1 | . . . . . . . . . . . 1 . . Combat Hostiles 1 | . . . . . . . . . . . 1 . . Robots Corrupted 2 | . . . . . . . . . . . 2 . . Combat Hostiles 2 | . . . . . . . . . . . 2 . . Parts Fried 7 | . . . . . . . . . . . 7 . . Impact Corruptions . | . . . . . . . . . . . . . . Robots Melted . | . . . . . . . . . . . . . . Combat Hostiles . | . . . . . . . . . . . . . . Parts Melted . | . . . . . . . . . . . . . . Heat Transferred 914 | . 50 50 . . 185 333 . 259 37 . . . . Parts Sabotaged . | . . . . . . . . . . . . . . Parts Stolen . | . . . . . . . . . . . . . . Parts Stripped . | . . . . . . . . . . . . . . Power Chain Reactions 1 | . 1 . . . . . . . . . . . . Alert | -11 -10 -10 -10 -9 -8 -8 -7 -7 -7 -6 -6 -5 -5 ------- Run | Yrd Mat Min Exi Min Mat Sto Fac Low Low Fac DSF Fac Was Maximum Alert Level 1 | . . . . . . 1 . . . . . . . Low Security (%) 99 | 100 100 100 . 100 100 98 100 . . 100 100 100 100 Level 1 . | . . . . . . 1 . . . . . . . Level 2 . | . . . . . . . . . . . . . . Level 3 . | . . . . . . . . . . . . . . Level 4 . | . . . . . . . . . . . . . . Level 5 . | . . . . . . . . . . . . . . High Security . | . . . . . . . . . . . . . . Max Security . | . . . . . . . . . . . . . . Peak Influence 203 | . 91 70 . . 60 203 77 . . 15 115 31 . Initial 77 | . . . . . . . 77 . . 15 10 31 . Average 45 | . 43 29 . . 10 85 44 . . 15 44 2 . Influence Increases 1506 | . 91 100 . . 60 695 . 295 65 . 200 . . Destroy 0b10 Robot/C 920 | . 60 80 . . 40 400 . 180 20 . 140 . . Destroy 0b10 Robot/NC 20 | . . . . . . 20 . . . . . . . Destroy Leader 244 | . 10 20 . . 20 124 . 40 . . 30 . . Allied During Kill 123 | . . . . . . 123 . . . . . . . Successful Hack 26 | . . . . . . 26 . . . . . . . Disable Machine 15 | . 15 . . . . . . . . . . . . Destroy Structure 8 | . 6 . . . . 2 . . . . . . . Lose Combat Pursuer 150 | . . . . . . . . 75 45 . 30 . . Influence Decreases 1506 | . 90 61 40 . 60 523 165 266 76 10 155 60 . Entered New Map 192 | . . 1 40 . . . 95 4 8 10 5 29 . Time Decay 897 | . 80 50 . . 40 338 70 238 50 . . 31 . Lost Part 282 | . 10 10 . . 20 50 . 24 18 . 150 . . Lost Ally 135 | . . . . . . 135 . . . . . . . Squads Dispatched 9 | . 2 . . . . 3 . . . . 2 2 . Investigation 3 | . 1 . . . . 2 . . . . . . . Extermination . | . . . . . . . . . . . . . . Reinforcement 6 | . 1 . . . . 1 . . . . 2 2 . Assault . | . . . . . . . . . . . . . . Garrison . | . . . . . . . . . . . . . . Intercept . | . . . . . . . . . . . . . . Searches Triggered . | . . . . . . . . . . . . . . Construction Impeded . | . . . . . . . . . . . . . . Haulers Reinforced . | . . . . . . . . . . . . . . Active Scanning Responses . | . . . . . . . . . . . . . . Cargo Convoy Interrupts . | . . . . . . . . . . . . . . Stealth | -11 -10 -10 -10 -9 -8 -8 -7 -7 -7 -6 -6 -5 -5 --------- Run | Yrd Mat Min Exi Min Mat Sto Fac Low Low Fac DSF Fac Was Distress Signals 5 | . 2 . . . . 3 . . . . . . . Communications Jammed . | . . . . . . . . . . . . . . Distress Signals . | . . . . . . . . . . . . . . Times Spotted 82 | . 6 5 . . 6 25 . 12 7 . 16 2 3 Peak Tracking Total 8 | . 5 3 . . 3 8 . 4 4 . 8 1 2 Tactical Retreats 7 | . . . . . . . . 4 1 . 2 . . Traps | -11 -10 -10 -10 -9 -8 -8 -7 -7 -7 -6 -6 -5 -5 ------- Run | Yrd Mat Min Exi Min Mat Sto Fac Low Low Fac DSF Fac Was Traps Triggered 7 | . 1 . . . . 2 . . . . 3 1 . Indirectly . | . . . . . . . . . . . . . . Trap Hack Attempts . | . . . . . . . . . . . . . . Triggered . | . . . . . . . . . . . . . . Disarmed . | . . . . . . . . . . . . . . Reprogrammed . | . . . . . . . . . . . . . . Reused . | . . . . . . . . . . . . . . Traps Extracted . | . . . . . . . . . . . . . . Installed . | . . . . . . . . . . . . . . Triggered . | . . . . . . . . . . . . . . Machines | -11 -10 -10 -10 -9 -8 -8 -7 -7 -7 -6 -6 -5 -5 ---------- Run | Yrd Mat Min Exi Min Mat Sto Fac Low Low Fac DSF Fac Was Machines Disabled 1 | . 1 . . . . . . . . . . . . Max in Single Turn 1 | . 1 . . . . . . . . . . . . Machines Repaired . | . . . . . . . . . . . . . . Machines Dismantled . | . . . . . . . . . . . . . . Machines Sabotaged . | . . . . . . . . . . . . . . Overloaded Fab Kills . | . . . . . . . . . . . . . . Hacking | -11 -10 -10 -10 -9 -8 -8 -7 -7 -7 -6 -6 -5 -5 --------- Run | Yrd Mat Min Exi Min Mat Sto Fac Low Low Fac DSF Fac Was Machines Accessed 15 | . 1 . 1 . 1 8 . 1 . 1 . 2 . Terminals 11 | . 1 . . . 1 7 . . . 1 . 1 . Fabricators 1 | . . . . . . . . . . . . 1 . Repair Stations 1 | . . . . . . 1 . . . . . . . Recycling Units . | . . . . . . . . . . . . . . Scanalyzers . | . . . . . . . . . . . . . . Garrison Access . | . . . . . . . . . . . . . . Total Hacks 63 | . 3 . 23 . 4 27 . 1 . 1 . 4 . Successful 52 | . 3 . 23 . 4 17 . 1 . 1 . 3 . Failed 10 | . . . . . . 9 . . . . . 1 . Catastrophic 2 | . . . . . . 2 . . . . . . . Database Lockouts 1 | . . . . . . 1 . . . . . . . Manual . | . . . . . . . . . . . . . . Terminals 35 | . 3 . . . 4 25 . . . 1 . 2 . Fabricators 2 | . . . . . . . . . . . . 2 . Repair Stations 2 | . . . . . . 2 . . . . . . . Recycling Units . | . . . . . . . . . . . . . . Scanalyzers . | . . . . . . . . . . . . . . Garrison Access . | . . . . . . . . . . . . . . Terminal Hacks 48 | . 3 . 23 . 4 15 . 1 . 1 . 1 . Record 38 | . 2 . 23 . 3 10 . . . . . . . Prototype ID Bank 1 | . . . . . . 1 . . . . . . . Open Door 3 | . . . . . . 2 . 1 . . . . . Open DSF 2 | . . . . . . . . . . 1 . 1 . Emergency Access Points 1 | . . . . . 1 . . . . . . . . Locate Traps 1 | . 1 . . . . . . . . . . . . Maintenance Status 1 | . . . . . . 1 . . . . . . . Zone Layout 1 | . . . . . . 1 . . . . . . . Fabricator Hacks 2 | . . . . . . . . . . . . 2 . Network Status 1 | . . . . . . . . . . . . 1 . Build 1 | . . . . . . . . . . . . 1 . Repair Station Hacks 2 | . . . . . . 2 . . . . . . . Scan Component 1 | . . . . . . 1 . . . . . . . Repair 1 | . . . . . . 1 . . . . . . . Recycling Unit Hacks . | . . . . . . . . . . . . . . Scanalyzer . | . . . . . . . . . . . . . . Garrison Access Hacks . | . . . . . . . . . . . . . . Unauthorized Hacks . | . . . . . . . . . . . . . . Terminals . | . . . . . . . . . . . . . . Fabricators . | . . . . . . . . . . . . . . Repair Stations . | . . . . . . . . . . . . . . Recycling Units . | . . . . . . . . . . . . . . Scanalyzers . | . . . . . . . . . . . . . . Garrison Access . | . . . . . . . . . . . . . . Data Cores Recovered . | . . . . . . . . . . . . . . Used . | . . . . . . . . . . . . . . Hacking Detections 8 | . 1 . . . 1 4 . . . . . 2 . Full Trace Events 4 | . 1 . . . . 3 . . . . . . . Feedback Events . | . . . . . . . . . . . . . . Feedback Blocked . | . . . . . . . . . . . . . . Robot Schematics Acquired . | . . . . . . . . . . . . . . Robots Built . | . . . . . . . . . . . . . . Authchips . | . . . . . . . . . . . . . . Time . | . . . . . . . . . . . . . . Total Robot Build Rating . | . . . . . . . . . . . . . . Part Schematics Acquired . | . . . . . . . . . . . . . . Parts Built 2 | . . . . . . . . . . . . 2 . Authchips . | . . . . . . . . . . . . . . Time 58 | . . . . . . . . . . . . 58 . Total Part Build Rating 14 | . . . . . . . . . . . . 14 . Part Studies Acquired . | . . . . . . . . . . . . . . Parts Repaired 1 | . . . . . . 1 . . . . . . . Time 38 | . . . . . . 38 . . . . . . . Parts Recycled . | . . . . . . . . . . . . . . Recycled Matter . | . . . . . . . . . . . . . . Retrieved Matter . | . . . . . . . . . . . . . . Retrieved Components . | . . . . . . . . . . . . . . Parts Scanalyzed . | . . . . . . . . . . . . . . Part Schematics Acquired . | . . . . . . . . . . . . . . Parts Damaged . | . . . . . . . . . . . . . . Bothacking | -11 -10 -10 -10 -9 -8 -8 -7 -7 -7 -6 -6 -5 -5 ------------ Run | Yrd Mat Min Exi Min Mat Sto Fac Low Low Fac DSF Fac Was Used RIF Installer . | . . . . . . . . . . . . . . Robots Hacked . | . . . . . . . . . . . . . . Non-combat . | . . . . . . . . . . . . . . Combat . | . . . . . . . . . . . . . . Robot Hacks Applied . | . . . . . . . . . . . . . . Relay Couplers Released . | . . . . . . . . . . . . . . Fabnet Peak Effective % . | . . . . . . . . . . . . . . Robots Rewired . | . . . . . . . . . . . . . . Allies Hacked . | . . . . . . . . . . . . . . Hacks Repelled . | . . . . . . . . . . . . . . Allies | -11 -10 -10 -10 -9 -8 -8 -7 -7 -7 -6 -6 -5 -5 -------- Run | Yrd Mat Min Exi Min Mat Sto Fac Low Low Fac DSF Fac Was Total Allies 10 | . . . . . . 10 . . . . . . . Largest Group 10 | . . . . . . 10 . . . . . . . Highest-Rated Group 173 | . . . . . . 173 . . . . . . . Highest-Rated Ally 29 | . . . . . . 29 . . . . . . . Total Orders . | . . . . . . . . . . . . . . Ally Attacks 89 | . . . . . . 89 . . . . . . . Total Damage 1051 | . . . . . . 1051 . . . . . . . Kills 14 | . . . . . . 14 . . . . . . . Allies Corrupted . | . . . . . . . . . . . . . . Allies Melted . | . . . . . . . . . . . . . . Intel | -11 -10 -10 -10 -9 -8 -8 -7 -7 -7 -6 -6 -5 -5 ------- Run | Yrd Mat Min Exi Min Mat Sto Fac Low Low Fac DSF Fac Was Active Infowar (turns) 2766 | . 70 147 579 99 326 1363 4 . 11 12 155 . . Sensors 987 | . . . . . 325 662 . . . . . . . Terrain 2588 | . 70 147 579 99 326 1363 4 . . . . . . T.N.C. 1 | . . . . . . . 1 . . . . . . Jamming 155 | . . . . . . . . . . . 155 . . ECM 23 | . . . . . . . . . 11 12 . . . Robot Analysis Total . | . . . . . . . . . . . . . . Derelict Logs Recovered 4 | . . 1 . . . . . 3 . . . . . Drone Launches . | . . . . . . . . . . . . . . Drone Recoveries . | . . . . . . . . . . . . . . Exploration | -11 -10 -10 -10 -9 -8 -8 -7 -7 -7 -6 -6 -5 -5 ------------- Run | Yrd Mat Min Exi Min Mat Sto Fac Low Low Fac DSF Fac Was Turns Passed 4946 | 51 183 147 579 99 326 1363 146 852 108 16 342 588 146 Spaces Moved 2453 | 45 167 79 304 52 121 583 108 583 69 3 136 182 21 Core 6 | 3 . . . . . . . . . . . . 3 Treads . | . . . . . . . . . . . . . . Legs 2182 | . . 23 304 52 121 583 108 583 69 3 136 182 18 Wheels 265 | 42 167 56 . . . . . . . . . . . Hover . | . . . . . . . . . . . . . . Flight . | . . . . . . . . . . . . . . Fastest Speed 50 | 50 90 105 190 190 190 120 120 120 133 133 120 120 400 Average Speed 174 | 89 102 130 190 190 244 201 120 125 133 133 149 283 698 Slowest Speed 2350 | 100 105 190 190 190 400 400 120 210 133 133 190 400 2350 Overloaded Moves . | . . . . . . . . . . . . . . Propulsion Burnouts . | . . . . . . . . . . . . . . Robots Hopped . | . . . . . . . . . . . . . . Potential Cave-ins . | . . . . . . . . . . . . . . Cave-ins Triggered . | . . . . . . . . . . . . . . Exploration Rate (%) 35 | 3 34 22 74 20 17 90 4 72 11 . 87 5 23 Regions Visited 13 Branch Regions 6 Pre-discovered Areas 2 | . . 1 1 . . . . . . . . . . Known Exits Taken 1 | . . . . . . . . . . 1 . . . Unknown Exits Taken 10 | 1 1 1 1 1 1 1 1 1 1 . . . . Scrap Searched 8 | . . 1 . . . . . 5 2 . . . . Spaces Dug . | . . . . . . . . . . . . . . Terrain Destroyed 11 | . 6 . . . . . . 5 . . . . . Melee . | . . . . . . . . . . . . . . Projectile 5 | . . . . . . . . 5 . . . . . AOE 6 | . 6 . . . . . . . . . . . . Terrain Rammed . | . . . . . . . . . . . . . . Walls Destroyed . | . . . . . . . . . . . . . . Machines Disabled . | . . . . . . . . . . . . . . Actions | -11 -10 -10 -10 -9 -8 -8 -7 -7 -7 -6 -6 -5 -5 --------- Run | Yrd Mat Min Exi Min Mat Sto Fac Low Low Fac DSF Fac Was Total 2905 | 52 173 104 306 53 136 726 122 654 75 7 216 258 23 Wait 176 | . . 6 2 2 1 77 . 18 1 . 10 59 . Move 2441 | 44 166 78 303 51 120 582 107 582 68 2 135 182 21 Hop . | . . . . . . . . . . . . . . Pick Up 46 | 2 . 4 1 . 3 11 7 6 . . 9 3 . Fast Attach 47 | 6 3 . . . 1 13 1 4 2 . 14 3 . Attach 31 | . . 3 . . 3 3 2 8 1 1 4 6 . Detach 4 | . . . . . . . . . . . . 4 . Swap 7 | . . . . . . . 3 . . . 3 1 . Drop 23 | . 1 1 . . . 7 1 11 . . 2 . . Fire 87 | . 2 11 . . 6 19 . 24 3 . 22 . . Melee 5 | . . . . . . . . . . . 3 . 2 Ram 2 | . 1 1 . . . . . . . . . . . Kick 18 | . . . . . 2 14 1 1 . . . . . Crush . | . . . . . . . . . . . . . . Escape Stasis 14 | . . . . . . . . . . . 14 . . Rewire . | . . . . . . . . . . . . . . Trap . | . . . . . . . . . . . . . . Miscellaneous 4 | . . . . . . . . . . 4 . . . Route ------- -11/Scrapyard -10/Materials -10/Mines -10/Exiles -9/Mines (discovered 2 exits: *Mat x2) -8/Materials -8/Storage -7/Factory -7/Lower Caves -7/Lower Caves -6/Factory -6/DSF -5/Factory -5/Waste History --------- Turn | Location | Event 34 | -11/Scrapyard | Discovered new exit (range 12) 52 | -11/Scrapyard | Entered Materials 218 | -10/Materials | Discovered new exit (range 7) 235 | -10/Materials | Entered Mines 265 | -10/Mines | Learned location of Zion (-7) 305 | -10/Mines | Build established: Mutant 371 | -10/Mines | Deemed a non-threat by the Exiles lab entrance 373 | -10/Mines | Discovered new exit (range 5) 382 | -10/Mines | Entered Exiles 382 | -10/Exiles | Found Exiles lab destroyed 940 | -10/Exiles | Discovered new exit (range 12) 961 | -10/Exiles | Entered Mines 975 | -9/Mines | Discovered new exit (range 13) 998 | -9/Mines | Met a Derelict bent on vengeance 1051 | -9/Mines | Discovered new exit (range 5) 1060 | -9/Mines | Entered Materials 1060 | -8/Materials | Evolved 4 slots: Power x1, Propulsion x1, Utility x1, Weapon x1 1319 | -8/Materials | Discovered new exit (range 10) 1386 | -8/Materials | Entered Storage 1424 | -8/Storage | Build established: Skirmisher 1652 | -8/Storage | Assisted by bots powering up and referring to "LRC-V3" 1965 | -8/Storage | Build established: Commander-Skirmisher 2121 | -8/Storage | Repaired Titanium Leg 2233 | -8/Storage | Central database locked down 2435 | -8/Storage | Lost 3 parts (1n2w) 2675 | -8/Storage | Discovered new exit (range 15) 2749 | -8/Storage | Entered Factory 2749 | -7/Factory | Evolved 2 slots: Utility x2 2885 | -7/Factory | Discovered new exit (range 9) 2895 | -7/Factory | Entered Lower Caves 2993 | -7/Lower Caves | Lost 3 parts (3w) 3076 | -7/Lower Caves | Learned Factory security intel 3256 | -7/Lower Caves | Build established: Gunner 3265 | -7/Lower Caves | Attracted the attention of an 0b10 checkpoint 3417 | -7/Lower Caves | Learned Factory stockpile data 3502 | -7/Lower Caves | Learned Factory emergency access door positions 3726 | -7/Lower Caves | Discovered new exit (range 14) 3747 | -7/Lower Caves | Entered another Lower Caves area 3829 | -7/Lower Caves | Discovered new exit (range 14) 3855 | -7/Lower Caves | Entered Factory 3855 | -6/Factory | Evolved 2 slots: Power x1, Utility x1 3871 | -6/Factory | Identified exit to DSF 3871 | -6/Factory | Entered DSF 3904 | -6/DSF | Additional patrols routed to DSF 3967 | -6/DSF | Lost 6 parts (1p1n3u1w) 4173 | -6/DSF | Lost 4 parts (1p2u1w) 4186 | -6/DSF | Discovered new exit (range 15) 4213 | -6/DSF | Entered Factory 4213 | -5/Factory | Evolved 2 slots: Utility x2 4238 | -5/Factory | Lost 7 parts (1p2n3u1w) 4329 | -5/Factory | Fabricated Imp. Remote Shield (x2) 4410 | -5/Factory | Build established: Mutant 4719 | -5/Factory | Build established: Hauler-Mutant 4801 | -5/Factory | Sucked down chute 4801 | -5/Factory | Entered Waste 4836 | -5/Waste | Spotted C-40 Crusher 4871 | -5/Waste | Crushed by Compactor (1 part destroyed, 1 dropped) 4874 | -5/Waste | Crushed by Compactor (0 parts destroyed, 1 dropped) 4877 | -5/Waste | Crushed by Compactor (0 parts destroyed, 1 dropped) 4880 | -5/Waste | Crushed by Compactor (1 part destroyed, 1 dropped) 4883 | -5/Waste | Crushed by Compactor (1 part destroyed) 4889 | -5/Waste | Crushed by Compactor (0 parts destroyed, 1 dropped) 4898 | -5/Waste | Crushed by Compactor (0 parts destroyed, 1 dropped) 4906 | -5/Waste | Spotted C-40 Crusher 4914 | -5/Waste | Lost 5 parts (1n3u1w) 4918 | -5/Waste | Core integrity fell below 50% 4930 | -5/Waste | Core integrity fell below 20% 4947 | -5/Waste | Destroyed by C-40 Crusher with Compactor Last Messages --------------- Drone Bay crushed. Flexi-carbon Leg crushed. Shock Absorption System destroyed. Hpw. Shotgun crushed. Imp. Remote Shield crushed. Critical hit (Destroy). Carbon-fiber Leg destroyed. Ionic Axe crushed. Adv. Assault Cannon crushed. Imp. Thermal Shield crushed. Flexi-carbon Leg crushed. Hpw. Shotgun crushed. Imp. Remote Shield crushed. Imp. Terrain Scan Processor crushed. Antimatter Reactor crushed. Com. Wheel crushed. Imp. Melee Analysis Suite crushed. Imp. Remote Force Field crushed. Com. Wheel crushed. 63 Matter crushed. Map ----- +----------------------------------------------------+ | ?????????????????????????????????????????????????? | | ?????????????????????????????????????????????????? | | ?????????????????????????????????????????????????? | | ?????????????????????????????????????????????????? | | ?????????????????????????????????????????????????? | | ?????????????????????????????????????????????????? | | ?????????????????????????????????????????????????? | | ?????????????????????????????????????????????????? | | ?????????????????????????????????????????????????? | | ?????????????????????????????????????????????????? | | ?????????????????????????????????????????????????? | | ?????????????????????????????????????????????????? | | ?????????????????????????#####???????????????????? | | ????????????????????????? #???????????????????? | | ????????????????????????? ] #???????????????????? | | ????????????????????????? #???????????????????? | | ????????????????????????? #???????????????????? | | ????????????????????????# #???????????????????? | | ???????????????????????? #???????????????????? | | ???????????????????????? !#???????????????????? | | ????????????????????????! #???????????????????? | | ???????????????????????? #???????????????????? | | ????????????????????????# #???????????????????? | | ????????????????????????# #???????????????????? | | ????????????????????????# #???????????????????? | | ????????????????????????#@CC #???????????????????? | | ??????????????????????### CC #???????????????????? | | ??????????????????????# CC #???????????????????? | | ??????????????????????#] CC #???????????????????? | | ??????????????????????# #???????????????????? | | ??????????????????????# #???????????????????? | | ??????????????????????### #???????????????????? | | ??????????############??# #???????????????????? | | ??????????# #??# #???????????????????? | | ??????????# #??# #???????????????????? | | ??????????# #### #######?????????????? | | ??????????# C ?????????? | | ??????????# C ????????? | | ??????????# ?????????? | | ??????????# ?????????? | | ??????????# #### ######## ??????????? | | ??????????# #??# #???????????????????? | | ??????????# #??# #???????????????????? | | ??????????############??# #???????????????????? | | ?????????????????????????! #???????????????????? | | ?????????????????????????#####???????????????????? | | ?????????????????????????????????????????????????? | | ?????????????????????????????????????????????????? | | ?????????????????????????????????????????????????? | | ?????????????????????????????????????????????????? | +----------------------------------------------------+ Best States ------------- Heat Dissipation 56 Energy Generation 28 Energy Capacity 425 Matter Stores 300 Matter Capacity 300 Sight Range 16 Robot Scan Range 19 Terrain Scan Range 14 Terrain Scan Density 110 ECM Strength 2 Jamming Range 14 Additional Mass Support 9 Armor Coverage 450 Weapon Shielding 66 Evasion (%) 55 Melee Accuracy 6 Particle Charging 15 Kinecelleration 30 Item Schematics ----------------- None Robot Schematics ------------------ None Fabricated ------------ Imp. Remote Shield | x2 | -5/Factory | Preloaded Repaired ---------- Titanium Leg | 77% | -8/Storage Studied --------- None Alien Tech Used ----------------- None Achievements -------------- Just What I Needed Leap Before You Look Challenges ------------ None Game ------ Seed FortressAnalysisScrap Manual? 0 Play Time 01:05:15 Cumulative 29.6 hours Start 2026.08.09 @ 13:13:23 End 2026.08.11 @ 19:40:35 Sessions 5 Manual Loads 0 Difficulty Rogue Special Mode None Game No. 54 Rogue 54 Adventurer 0 Explorer 0 Win Type - Total 0 Types 0/0/0/0/0/0/0/0/0/0 Lore% 13 Gallery% 22 Achievement% 15 Wizard Run 0 Options --------- Layout 1 ASCII 0 Keyboard 0 Movement Numpad Keybinds 0 Fullscreen 1 Font 32/SmallcapsGlow Map View 50x35 Zoom Use 0% Tactical HUD 0 Map Filters NONE Filters NONE Steam 1 RUN: 9e8c4586-0c72-4f9c-bd50-9037c18842f9